lending/lending_fUSD_20241229
["ID","MTS","AMOUNT","RATE_DAILY","PERIOD"]
[347084598,1735491070551,-870.38,0.00014275,2]
[347084599,1735491070560,-500.0,0.00014275,2]
[347084600,1735491070570,-500.0,0.00014275,2]
[347084601,1735491070579,-500.0,0.00014275,2]
[347084602,1735491070589,-500.0,0.00014275,2]
[347084603,1735491070598,-500.0,0.00014275,2]
[347084604,1735491070607,-3278.13,0.00014275,2]
[347084605,1735491070616,-1015.64,0.00014275,2]
[347084606,1735491070626,-500.0,0.00014275,2]
[347084607,1735491070635,-500.0,0.00014275,2]
[347084608,1735491070644,-500.0,0.00014275,2]
[347084609,1735491070653,-620.96,0.00014275,2]
[347084610,1735491070663,-1840.21,0.00014275,2]
[347084611,1735491070672,-704.14,0.00014275,2]
[347084612,1735491070681,-299.01218979,0.00014276,2]
[347084613,1735491070691,-816.1,0.00014276,2]
[347084614,1735491070700,-500.0,0.00014276,2]
[347084615,1735491070710,-590.14,0.00014276,2]
[347084616,1735491070719,-500.0,0.00014276,2]
[347084617,1735491070728,-1340.36,0.00014276,2]
[347084618,1735491070737,-762.4,0.00014276,2]
[347084619,1735491070746,-500.0,0.00014276,2]
[347084620,1735491070756,-397.85468307,0.00014276,2]
[347084621,1735491070765,-500.0,0.00014276,2]
[347084622,1735491070776,-500.0,0.00014276,2]
[347084623,1735491070786,-500.0,0.00014276,2]
[347084624,1735491070795,-2344.33,0.00014276,2]
[347084625,1735491070805,-909.47,0.00014276,2]
[347084626,1735491070814,-865.68,0.00014276,2]
[347084627,1735491070822,-500.0,0.00014276,2]
[347084628,1735491070832,-701.25,0.00014276,2]
[347084629,1735491070841,-233.38339162,0.00014276,2]
[347084630,1735491070851,-602.07,0.00014276,2]
[347084631,1735491070861,-500.0,0.00014276,2]
[347084632,1735491070870,-500.0,0.00014276,2]
[347084633,1735491070885,-529.35,0.00014276,2]
[347084634,1735491070901,-172.26209374,0.00014276,2]
[347084635,1735491070910,-500.0,0.00014276,2]
[347084636,1735491070919,-297.59,0.00014276,2]
[347084637,1735491070928,-1953.32,0.00014276,2]
[347084638,1735491070937,-500.0,0.00014276,2]
[347084639,1735491070946,-573.35,0.00014276,2]
[347084640,1735491070955,-500.0,0.00014276,2]
[347084641,1735491070964,-621.43,0.00014276,2]
[347084642,1735491070974,-360.62,0.00014276,2]
[347084643,1735491070983,-873.53,0.00014276,2]
[347084644,1735491070992,-618.71,0.00014276,2]
[347084645,1735491071001,-500.0,0.00014276,2]
[347084646,1735491071011,-255.66647744,0.00014276,2]
[347084647,1735491071080,-722.38,0.00014276,2]
[347084648,1735491071091,-500.0,0.00014276,2]
[347084649,1735491071104,-2838.92,0.00014276,2]
[347084650,1735491071113,-500.0,0.00014276,2]
[347084651,1735491071122,-550.48644991,0.00014276,2]
[347084652,1735491071131,-3628.4,0.00014276,2]
[347084653,1735491071142,-876.23,0.00014276,2]
[347084654,1735491071152,-3692.81,0.00014276,2]
[347084655,1735491071161,-500.0,0.00014276,2]
[347084656,1735491071170,-1101.36,0.00014276,2]
[347084657,1735491071180,-870.98,0.00014276,2]
[347084658,1735491071189,-500.0,0.00014276,2]
[347084659,1735491071198,-1348.28,0.00014276,2]
[347084660,1735491071208,-1836.05,0.00014276,2]
[347084661,1735491071217,-500.0,0.00014277,2]
[347084662,1735491071226,-999.87,0.00014277,2]
[347084663,1735491071235,-510.19,0.00014277,2]
[347084664,1735491071245,-1921.52,0.00014277,2]
[347084665,1735491071254,-546.78,0.00014277,2]
[347084666,1735491071263,-3871.1,0.00014277,2]
[347084667,1735491071274,-592.58,0.00014277,2]
[347084668,1735491071283,-513.22,0.00014277,2]
[347084669,1735491071292,-1175.67,0.00014277,2]
[347084670,1735491071302,-500.0,0.00014277,2]
[347084671,1735491071311,-500.0,0.00014277,2]
[347084672,1735491071319,-515.44,0.00014278,2]
[347084673,1735491071328,-615.03,0.00014278,2]
[347084674,1735491071338,-362.59293987,0.00014278,2]
[347084675,1735491071347,-500.0,0.00014278,2]
[347084676,1735491071355,-899.47,0.00014278,2]
[347084677,1735491071364,-500.0,0.00014278,2]
[347084678,1735491071374,-815.97,0.00014278,2]
[347084679,1735491071383,-18568.48,0.00014278,2]
[347084680,1735491071393,-500.0,0.00014278,2]
[347084681,1735491071402,-545.9,0.00014278,2]
[347084682,1735491071411,-969.49,0.00014278,2]
[347084683,1735491071421,-540.34712844,0.00014278,2]
[347084684,1735491071430,-500.0,0.00014278,2]
[347084685,1735491071439,-1026.67,0.00014278,2]
[347084686,1735491071448,-500.0,0.00014278,2]
[347084687,1735491071457,-500.0,0.00014278,2]
[347084688,1735491071466,-2110.5,0.00014278,2]
[347084689,1735491071476,-500.0,0.00014278,2]
[347084690,1735491071485,-500.0,0.00014278,2]
[347084691,1735491071494,-703.26,0.00014278,2]
[347084692,1735491071503,-510.62,0.00014278,2]
[347084693,1735491071513,-500.0,0.00014278,2]
[347084694,1735491071523,-500.0,0.00014278,2]
[347084695,1735491071533,-500.0,0.00014278,2]
[347084696,1735491071542,-570.93,0.00014278,2]
[347084697,1735491071551,-1499.18,0.00014279,2]
[347084698,1735491071561,-500.0,0.00014279,2]
[347084699,1735491071570,-578.37,0.00014279,2]
[347084700,1735491071580,-500.0,0.00014279,2]
[347084701,1735491071588,-548.58,0.00014279,2]
[347084702,1735491071597,-500.0,0.00014279,2]
[347084703,1735491071607,-700.84,0.00014279,2]
[347084704,1735491071617,-2940.43,0.00014279,2]
[347084705,1735491071626,-5636.03,0.00014279,2]
[347084706,1735491071636,-556.4,0.00014279,2]
[347084707,1735491071645,-500.0,0.00014279,2]
[347084708,1735491071655,-1813.25,0.00014279,2]
[347084709,1735491071664,-640.38,0.00014279,2]
[347084710,1735491071673,-15027.68,0.00014279,2]
[347084711,1735491071682,-500.0,0.00014279,2]
[347084712,1735491071692,-500.0,0.00014279,2]
[347084713,1735491071700,-1140.36,0.00014279,2]
[347084714,1735491071710,-4325.16,0.0001428,2]
[347084715,1735491071719,-500.0,0.0001428,2]
[347084716,1735491071728,-273.84308143,0.0001428,2]
[347084717,1735491071737,-1186.66,0.0001428,2]
[347084718,1735491071746,-692.34,0.0001428,2]
[347084719,1735491071755,-150.0,0.0001428,2]
[347084720,1735491071764,-150.0,0.00014323,2]
[347084721,1735491071774,-500.0,0.0001445,2]
[347084722,1735491071783,-500.0,0.0001445,2]
[347084723,1735491071793,-791.71,0.0001445,2]
[347084724,1735491071803,-500.0,0.0001445,2]
[347084725,1735491071813,-950.63,0.0001445,2]
[347084726,1735491071822,-1210.43,0.0001445,2]
[347084727,1735491071831,-500.0,0.0001445,2]
[347084728,1735491071841,-500.0,0.0001445,2]
[347084729,1735491071850,-500.0,0.0001445,2]
[347084730,1735491071859,-500.0,0.0001445,2]
[347084731,1735491071869,-500.0,0.0001445,2]
[347084732,1735491071878,-500.0,0.0001445,2]
[347084733,1735491071888,-180.48170772,0.0001445,2]
[347084734,1735491071897,-500.0,0.0001445,2]
[347084735,1735491071906,-500.0,0.0001445,2]
[347084736,1735491071915,-547.82374563,0.0001445,2]
[347084737,1735491071924,-150.0,0.00014457,2]
[347084738,1735491071933,-150.0,0.00014508,2]
[347084739,1735491071942,-1159.18,0.00014549,2]
[347084740,1735491071951,-577.16859788,0.00014549,2]
[347084741,1735491071961,-520.55,0.00014549,2]
[347084742,1735491071970,-500.0,0.00014549,2]
[347084743,1735491071979,-705.2,0.00014549,2]
[347084744,1735491071989,-150.701539,0.00014549,2]
[347084745,1735491071997,-2192.36,0.00014549,2]
[347084746,1735491072007,-500.0,0.00014549,2]
[347084747,1735491072017,-500.0,0.00014549,2]
[347084748,1735491072026,-2173.71,0.00014549,2]
[347084749,1735491072035,-1409.21,0.00014549,2]
[347084750,1735491072044,-1775.22,0.00014549,2]
[347084751,1735491072054,-500.0,0.00014549,2]
[347084752,1735491072063,-500.0,0.00014549,2]
[347084753,1735491072072,-500.0,0.00014549,2]
[347084754,1735491072082,-500.0,0.00014549,2]
[347084755,1735491072092,-392.08710445,0.00014549,2]
[347084756,1735491072104,-2866.13,0.00014549,2]
[347084757,1735491072113,-500.0,0.00014549,2]
[347084758,1735491072122,-524.39695649,0.00014549,2]
[347084759,1735491072132,-500.0,0.00014549,2]
[347084760,1735491072141,-500.0,0.00014549,2]
[347084761,1735491072151,-500.0,0.00014549,2]
[347084762,1735491072160,-500.0,0.00014549,2]
[347084763,1735491072169,-500.0,0.00014549,2]
[347084764,1735491072179,-500.0,0.00014549,2]
[347084765,1735491072188,-500.0,0.00014549,2]
[347084766,1735491072198,-500.0,0.00014549,2]
[347084767,1735491072207,-1154.75,0.00014549,2]
[347084768,1735491072216,-1890.37,0.00014549,2]
[347084769,1735491072225,-781.33,0.00014549,2]
[347084770,1735491072234,-1791.32,0.00014549,2]
[347084771,1735491072244,-538.12670796,0.00014549,2]
[347084772,1735491072253,-1113.85,0.00014549,2]
[347084773,1735491072263,-500.0,0.00014549,2]
[347084774,1735491072276,-695.21,0.00014549,2]
[347084775,1735491072285,-516.34,0.00014549,2]
[347084776,1735491072295,-822.12,0.00014549,2]
[347084777,1735491072304,-500.0,0.00014549,2]
[347084778,1735491072313,-500.0,0.00014549,2]
[347084779,1735491072323,-454.99,0.00014549,2]
[347084780,1735491072332,-577.92,0.00014549,2]
[347084781,1735491072341,-870.38,0.00014549,2]
[347084782,1735491072350,-500.0,0.00014549,2]
[347084783,1735491072360,-500.0,0.00014549,2]
[347084784,1735491072369,-500.0,0.00014549,2]
[347084785,1735491072379,-500.0,0.00014549,2]
[347084786,1735491072388,-500.0,0.00014549,2]
[347084787,1735491072398,-3278.13,0.00014549,2]
[347084788,1735491072408,-1015.64,0.00014549,2]
[347084789,1735491072417,-457.9696535,0.00014549,2]
[347084790,1735491072427,-500.0,0.00014549,2]
[347084791,1735491072437,-500.0,0.00014549,2]
[347084792,1735491072446,-620.96,0.00014549,2]
[347084793,1735491072457,-1840.21,0.00014549,2]
[347084794,1735491072466,-704.14,0.00014549,2]
[347084795,1735491072475,-816.1,0.0001455,2]
[347084796,1735491072484,-500.0,0.0001455,2]
[347084797,1735491072494,-590.14,0.0001455,2]
[347084798,1735491072503,-500.0,0.0001455,2]
[347084799,1735491072513,-1340.36,0.0001455,2]
[347084800,1735491072525,-762.4,0.0001455,2]
[347084801,1735491072535,-500.0,0.0001455,2]
[347084802,1735491072544,-500.0,0.0001455,2]
[347084803,1735491072555,-500.0,0.0001455,2]
[347084804,1735491072564,-232.09,0.0001455,2]
[347084805,1735491072574,-2344.33,0.0001455,2]
[347084806,1735491072584,-909.47,0.0001455,2]
[347084807,1735491072593,-865.68,0.0001455,2]
[347084808,1735491072602,-500.0,0.0001455,2]
[347084809,1735491072612,-701.25,0.0001455,2]
[347084810,1735491072622,-602.07,0.0001455,2]
[347084811,1735491072632,-500.0,0.0001455,2]
[347084812,1735491072641,-500.0,0.0001455,2]
[347084813,1735491072651,-500.0,0.0001455,2]
[347084814,1735491072661,-1953.32,0.0001455,2]
[347084815,1735491072671,-500.0,0.0001455,2]
[347084816,1735491072680,-500.0,0.0001455,2]
[347084817,1735491072690,-621.43,0.0001455,2]
[347084818,1735491072700,-873.53,0.0001455,2]
[347084819,1735491072710,-500.0,0.0001455,2]
[347084820,1735491072719,-722.38,0.0001455,2]
[347084821,1735491072729,-500.0,0.0001455,2]
[347084822,1735491072738,-2838.92,0.0001455,2]
[347084823,1735491072747,-535.11,0.0001455,2]
[347084824,1735491072756,-3628.4,0.0001455,2]
[347084825,1735491072766,-876.23,0.0001455,2]
[347084826,1735491072777,-3692.81,0.0001455,2]
[347084827,1735491072787,-500.0,0.0001455,2]
[347084828,1735491072796,-1101.36,0.0001455,2]
[347084829,1735491072806,-870.98,0.0001455,2]
[347084830,1735491072816,-500.0,0.0001455,2]
[347084831,1735491072825,-1348.28,0.0001455,2]
[347084832,1735491072835,-1836.05,0.0001455,2]
[347084833,1735491072845,-500.0,0.00014551,2]
[347084834,1735491072854,-999.87,0.00014551,2]
[347084835,1735491072864,-510.19,0.00014551,2]
[347084836,1735491072873,-1921.52,0.00014551,2]
[347084837,1735491072883,-546.78,0.00014551,2]
[347084838,1735491072893,-3871.1,0.00014551,2]
[347084839,1735491072902,-592.58,0.00014551,2]
[347084840,1735491072911,-513.22,0.00014551,2]
[347084841,1735491072921,-1175.67,0.00014551,2]
[347084842,1735491072930,-500.0,0.00014551,2]
[347084843,1735491072940,-500.0,0.00014551,2]
[347084844,1735491072949,-515.44,0.00014552,2]
[347084845,1735491072959,-615.03,0.00014552,2]
[347084846,1735491072968,-500.0,0.00014552,2]
[347084847,1735491072978,-899.47,0.00014552,2]
[347084848,1735491072988,-500.0,0.00014552,2]
[347084849,1735491072997,-815.97,0.00014552,2]
[347084850,1735491073007,-18568.48,0.00014552,2]
[347084851,1735491073017,-500.0,0.00014552,2]
[347084852,1735491073026,-545.9,0.00014552,2]
[347084853,1735491073036,-969.49,0.00014552,2]
[347084854,1735491073045,-500.0,0.00014552,2]
[347084855,1735491073055,-1026.67,0.00014552,2]
[347084856,1735491073064,-500.0,0.00014552,2]
[347084857,1735491073074,-375.35101362,0.00014552,2]
[347084858,1735491073084,-2110.5,0.00014552,2]
[347084859,1735491073094,-500.0,0.00014552,2]
[347084860,1735491073106,-255.27724343,0.00014552,2]
[347084861,1735491073115,-703.26,0.00014552,2]
[347084862,1735491073125,-510.62,0.00014552,2]
[347084863,1735491073134,-500.0,0.00014552,2]
[347084864,1735491073143,-500.0,0.00014552,2]
[347084865,1735491073153,-500.0,0.00014552,2]
[347084866,1735491073162,-570.93,0.00014552,2]
[347084867,1735491073171,-1499.18,0.00014553,2]
[347084868,1735491073182,-500.0,0.00014553,2]
[347084869,1735491073191,-578.37,0.00014553,2]
[347084870,1735491073201,-500.0,0.00014553,2]
[347084871,1735491073211,-548.58,0.00014553,2]
[347084872,1735491073221,-500.0,0.00014553,2]
[347084873,1735491073231,-700.84,0.00014553,2]
[347084874,1735491073240,-2940.43,0.00014553,2]
[347084875,1735491073249,-5636.03,0.00014553,2]
[347084876,1735491073260,-556.4,0.00014553,2]
[347084877,1735491073271,-500.0,0.00014553,2]
[347084878,1735491073280,-1813.25,0.00014553,2]
[347084879,1735491073289,-640.38,0.00014553,2]
[347084880,1735491073298,-15027.68,0.00014553,2]
[347084881,1735491073308,-500.0,0.00014553,2]
[347084882,1735491073318,-500.0,0.00014553,2]
[347084883,1735491073328,-1140.36,0.00014553,2]
[347084884,1735491073337,-4325.16,0.00014554,2]
[347084885,1735491073347,-500.0,0.00014554,2]
[347084886,1735491073356,-1186.66,0.00014554,2]
[347084887,1735491073365,-692.34,0.00014554,2]
[347084888,1735491073375,-500.0,0.00014576,2]
[347084889,1735491073385,-150.0,0.0001463,2]
[347084890,1735491073395,-151.0,0.00014631,2]
[347084891,1735491073404,-1100.0,0.00014712,2]
[347084892,1735491073414,-500.0,0.00014712,2]
[347084893,1735491073424,-500.0,0.00014724,2]
[347084894,1735491073433,-500.0,0.00014724,2]
[347084895,1735491073443,-791.71,0.00014724,2]
[347084896,1735491073453,-500.0,0.00014724,2]
[347084897,1735491073463,-950.63,0.00014724,2]
[347084898,1735491073472,-1210.43,0.00014724,2]
[347084899,1735491073482,-500.0,0.00014724,2]
[347084900,1735491073491,-500.0,0.00014724,2]
[347084901,1735491073500,-500.0,0.00014724,2]
[347084902,1735491073510,-500.0,0.00014724,2]
[347084903,1735491073521,-500.0,0.00014724,2]
[347084904,1735491073531,-500.0,0.00014724,2]
[347084905,1735491073542,-155.5,0.00014724,2]
[347084906,1735491073551,-500.0,0.00014724,2]
[347084907,1735491073561,-150.0,0.0001477,2]
[347084908,1735491073570,-1000.0,0.00014781,2]
[347084909,1735491073580,-189.0,0.00014797,2]
[347084910,1735491073589,-189.0,0.00014797,2]
[347084911,1735491073600,-189.0,0.00014797,2]
[347084912,1735491073610,-189.0,0.00014797,2]
[347084913,1735491073619,-189.0,0.00014797,2]
[347084914,1735491073629,-189.0,0.00014797,2]
[347084915,1735491073639,-189.0,0.00014797,2]
[347084916,1735491073648,-189.0,0.00014797,2]
[347084917,1735491073658,-189.0,0.00014797,2]
[347084918,1735491073667,-189.0,0.00014797,2]
[347084919,1735491073677,-189.0,0.00014797,2]
[347084920,1735491073687,-189.0,0.00014797,2]
[347084921,1735491073696,-189.0,0.00014797,2]
[347084922,1735491073706,-189.0,0.00014797,2]
[347084923,1735491073716,-153.0,0.00014797,2]
[347084924,1735491073726,-153.0,0.00014797,2]
[347084925,1735491073736,-153.0,0.00014797,2]
[347084926,1735491073745,-153.0,0.00014797,2]
[347084927,1735491073755,-153.0,0.00014797,2]
[347084928,1735491073765,-153.0,0.00014797,2]
[347084929,1735491073776,-153.0,0.00014797,2]
[347084930,1735491073786,-153.0,0.00014797,2]
[347084931,1735491073795,-153.0,0.00014797,2]
[347084932,1735491073805,-153.0,0.00014797,2]
[347084933,1735491073815,-153.0,0.00014797,2]
[347084934,1735491073825,-189.0,0.00014797,2]
[347084935,1735491073834,-189.0,0.00014797,2]
[347084936,1735491073844,-189.0,0.00014797,2]
[347084937,1735491073853,-189.0,0.00014797,2]
[347084938,1735491073863,-189.0,0.00014797,2]
[347084939,1735491073873,-189.0,0.00014797,2]
[347084940,1735491073882,-189.0,0.00014797,2]
[347084941,1735491073892,-189.0,0.00014797,2]
[347084942,1735491073901,-189.0,0.00014797,2]
[347084943,1735491073911,-189.0,0.00014797,2]
[347084944,1735491073920,-189.0,0.00014797,2]
[347084945,1735491073930,-189.0,0.00014797,2]
[347084946,1735491073939,-189.0,0.00014797,2]
[347084947,1735491073948,-153.0,0.00014797,2]
[347084948,1735491073957,-153.0,0.00014797,2]
[347084949,1735491073967,-153.0,0.00014797,2]
[347084950,1735491073978,-153.0,0.00014797,2]
[347084951,1735491073987,-153.0,0.00014797,2]
[347084952,1735491073997,-153.0,0.00014797,2]
[347084953,1735491074007,-153.0,0.00014797,2]
[347084954,1735491074018,-153.0,0.00014797,2]
[347084955,1735491074027,-189.0,0.00014799,2]
[347084956,1735491074036,-189.0,0.00014799,2]
[347084957,1735491074045,-189.0,0.00014799,2]
[347084958,1735491074054,-189.0,0.00014799,2]
[347084959,1735491074064,-189.0,0.00014799,2]
[347084960,1735491074073,-189.0,0.00014799,2]
[347084961,1735491074083,-189.0,0.00014799,2]
[347084962,1735491074093,-189.0,0.00014799,2]
[347084963,1735491074104,-189.0,0.00014799,2]
[347084964,1735491074113,-189.0,0.00014799,2]
[347084965,1735491074123,-189.0,0.00014799,2]
[347084966,1735491074132,-189.0,0.00014799,2]
[347084967,1735491074142,-189.0,0.00014799,2]
[347084968,1735491074152,-189.0,0.00014799,2]
[347084969,1735491074161,-153.0,0.00014799,2]
[347084970,1735491074171,-153.0,0.00014799,2]
[347084971,1735491074180,-153.0,0.00014799,2]
[347084972,1735491074191,-153.0,0.00014799,2]
[347084973,1735491074200,-153.0,0.00014799,2]
[347084974,1735491074210,-153.0,0.00014799,2]
[347084975,1735491074219,-153.0,0.00014799,2]
[347084976,1735491074227,-153.0,0.00014799,2]
[347084977,1735491074236,-153.0,0.00014799,2]
[347084978,1735491074245,-153.0,0.00014799,2]
[347084979,1735491074254,-153.0,0.00014799,2]
[347084980,1735491074264,-189.0,0.00014799,2]
[347084981,1735491074276,-189.0,0.00014799,2]
[347084982,1735491074285,-189.0,0.00014799,2]
[347084983,1735491074294,-189.0,0.00014799,2]
[347084984,1735491074303,-189.0,0.00014799,2]
[347084985,1735491074312,-189.0,0.00014799,2]
[347084986,1735491074322,-189.0,0.00014799,2]
[347084987,1735491074331,-189.0,0.00014799,2]
[347084988,1735491074341,-189.0,0.00014799,2]
[347084989,1735491074351,-189.0,0.00014799,2]
[347084990,1735491074361,-189.0,0.00014799,2]
[347084991,1735491074370,-189.0,0.00014799,2]
[347084992,1735491074380,-189.0,0.00014799,2]
[347084993,1735491074390,-189.0,0.00014799,2]
[347084994,1735491074400,-153.0,0.00014799,2]
[347084995,1735491074410,-153.0,0.00014799,2]
[347084996,1735491074420,-153.0,0.00014799,2]
[347084997,1735491074430,-153.0,0.00014799,2]
[347084998,1735491074439,-153.0,0.00014799,2]
[347084999,1735491074450,-153.0,0.00014799,2]
[347085000,1735491074459,-153.0,0.00014799,2]
[347085001,1735491074469,-153.0,0.00014799,2]
[347085002,1735491074480,-153.0,0.00014799,2]
[347085003,1735491074490,-153.0,0.00014799,2]
[347085004,1735491074499,-153.0,0.00014799,2]
[347085005,1735491074509,-189.0,0.00014799,2]
[347085006,1735491074520,-189.0,0.00014799,2]
[347085007,1735491074530,-189.0,0.00014799,2]
[347085008,1735491074540,-189.0,0.00014799,2]
[347085009,1735491074550,-189.0,0.00014799,2]
[347085010,1735491074559,-189.0,0.00014799,2]
[347085011,1735491074569,-189.0,0.00014799,2]
[347085012,1735491074578,-189.0,0.00014799,2]
[347085013,1735491074588,-189.0,0.00014799,2]
[347085014,1735491074598,-189.0,0.00014799,2]
[347085015,1735491074608,-189.0,0.00014799,2]
[347085016,1735491074618,-189.0,0.00014799,2]
[347085017,1735491074627,-189.0,0.00014799,2]
[347085018,1735491074637,-189.0,0.00014799,2]
[347085019,1735491074647,-153.0,0.00014799,2]
[347085020,1735491074657,-153.0,0.00014799,2]
[347085021,1735491074666,-153.0,0.00014799,2]
[347085022,1735491074676,-153.0,0.00014799,2]
[347085023,1735491074686,-153.0,0.00014799,2]
[347085024,1735491074695,-153.0,0.00014799,2]
[347085025,1735491074705,-153.0,0.00014799,2]
[347085026,1735491074715,-153.0,0.00014799,2]
[347085027,1735491074725,-153.0,0.00014799,2]
[347085028,1735491074734,-153.0,0.00014799,2]
[347085029,1735491074744,-153.0,0.00014799,2]
[347085030,1735491074754,-189.0,0.00014799,2]
[347085031,1735491074764,-189.0,0.00014799,2]
[347085032,1735491074774,-189.0,0.00014799,2]
[347085033,1735491074784,-189.0,0.00014799,2]
[347085034,1735491074794,-189.0,0.00014799,2]
[347085035,1735491074804,-189.0,0.00014799,2]
[347085036,1735491074814,-189.0,0.00014799,2]
[347085037,1735491074824,-189.0,0.00014799,2]
[347085038,1735491074833,-189.0,0.00014799,2]
[347085039,1735491074843,-189.0,0.00014799,2]
[347085040,1735491074853,-189.0,0.00014799,2]
[347085041,1735491074862,-189.0,0.00014799,2]
[347085042,1735491074872,-189.0,0.00014799,2]
[347085043,1735491074882,-189.0,0.00014799,2]
[347085044,1735491074891,-153.0,0.00014799,2]
[347085045,1735491074900,-153.0,0.00014799,2]
[347085046,1735491074910,-153.0,0.00014799,2]
[347085047,1735491074919,-153.0,0.00014799,2]
[347085048,1735491074930,-153.0,0.00014799,2]
[347085049,1735491074940,-153.0,0.00014799,2]
[347085050,1735491074949,-153.0,0.00014799,2]
[347085051,1735491074960,-153.0,0.00014799,2]
[347085052,1735491074970,-153.0,0.00014799,2]
[347085053,1735491074979,-153.0,0.00014799,2]
[347085054,1735491074989,-153.0,0.00014799,2]
[347085055,1735491075000,-189.0,0.00014799,2]
[347085056,1735491075009,-189.0,0.00014799,2]
[347085057,1735491075019,-189.0,0.00014799,2]
[347085058,1735491075028,-189.0,0.00014799,2]
[347085059,1735491075038,-189.0,0.00014799,2]
[347085060,1735491075049,-189.0,0.00014799,2]
[347085061,1735491075060,-189.0,0.00014799,2]
[347085062,1735491075071,-189.0,0.00014799,2]
[347085063,1735491075082,-189.0,0.00014799,2]
[347085064,1735491075092,-189.0,0.00014799,2]
[347085065,1735491075103,-189.0,0.00014799,2]
[347085066,1735491075114,-189.0,0.00014799,2]
[347085067,1735491075123,-189.0,0.00014799,2]
[347085068,1735491075133,-189.0,0.00014799,2]
[347085069,1735491075143,-153.0,0.00014799,2]
[347085070,1735491075153,-153.0,0.00014799,2]
[347085071,1735491075163,-153.0,0.00014799,2]
[347085072,1735491075172,-153.0,0.00014799,2]
[347085073,1735491075183,-153.0,0.00014799,2]
[347085074,1735491075193,-153.0,0.00014799,2]
[347085075,1735491075203,-153.0,0.00014799,2]
[347085076,1735491075213,-153.0,0.00014799,2]
[347085077,1735491075223,-153.0,0.00014799,2]
[347085078,1735491075233,-153.0,0.00014799,2]
[347085079,1735491075242,-153.0,0.00014799,2]
[347085080,1735491075252,-250000.0,0.000148,2]
[347085081,1735491075262,-150.0,0.00014803,2]
[347085082,1735491075272,-150.0,0.00014804,2]
[347085083,1735491075282,-619.89,0.00014815,2]
[347085084,1735491075292,-1159.18,0.00014823,2]
[347085085,1735491075302,-520.55,0.00014823,2]
[347085086,1735491075313,-485.63415249,0.00014823,2]
[347085087,1735491075322,-705.2,0.00014823,2]
[347085088,1735491075332,-150.701539,0.00014823,2]
[347085089,1735491075342,-2192.36,0.00014823,2]
[347085090,1735491075352,-546.28918958,0.00014823,2]
[347085091,1735491075362,-202.00442877,0.00014823,2]
[347085092,1735491075372,-2173.71,0.00014823,2]
[347085093,1735491075383,-1409.21,0.00014823,2]
[347085094,1735491075392,-1775.22,0.00014823,2]
[347085095,1735491075402,-500.0,0.00014823,2]
[347085096,1735491075412,-500.0,0.00014823,2]
[347085097,1735491075422,-183.42489617,0.00014823,2]